bitfinex-derivatives/quotes_BTCF0:USTF0_20240825
["timestamp","ask_amount","ask_price","bid_price","bid_amount"]
[1724548594506,0.954014,64291.0,64282.0,0.077744]
[1724548595293,1.01583328,64291.0,64282.0,0.077744]
[1724548595596,0.954014,64291.0,64282.0,0.077744]
[1724548596004,0.077744,64283.0,64282.0,0.077744]
[1724548596299,0.08,64283.0,64281.0,8e-05]
[1724548597034,4e-05,64282.0,64281.0,8e-05]
[1724548597403,0.077785,64282.0,64281.0,8e-05]
[1724548598494,0.078785,64282.0,64281.0,8e-05]
[1724548599398,0.079785,64282.0,64281.0,8e-05]
[1724548601800,0.079785,64282.0,64281.0,0.077826]
[1724548602209,0.00204,64282.0,64281.0,0.438626]
[1724548604209,0.00204,64282.0,64281.0,0.954606]
[1724548605407,0.11151928,64303.0,64282.0,0.077744]
[1724548605726,0.1297,64303.0,64302.0,0.08]
[1724548606116,0.08,64303.0,64302.0,0.08]
[1724548606307,0.08400175,64303.0,64298.0,0.08]
[1724548606704,0.08500175,64303.0,64298.0,0.08]
[1724548606909,0.08500175,64303.0,64299.0,0.077724]
[1724548607310,0.08600175,64303.0,64299.0,0.077724]
[1724548608008,0.08,64300.0,64299.0,0.077724]
[1724548609118,0.081,64300.0,64299.0,0.077724]
[1724548610311,0.082,64300.0,64299.0,0.077724]
[1724548610508,0.002,64300.0,64299.0,0.077724]
[1724548613803,0.002,64300.0,64299.0,0.123424]
[1724548614206,0.00023321,64307.0,64306.0,0.077716]
[1724548614519,0.00023321,64307.0,64306.0,0.518516]
[1724548615312,0.00223321,64307.0,64306.0,0.518516]
[1724548615923,0.00223321,64307.0,64306.0,0.56493724]
[1724548616263,0.00223321,64307.0,64306.0,0.518516]
[1724548616547,0.00223321,64307.0,64306.0,0.438516]
[1724548616920,0.10841928,64324.0,64307.0,0.077715]
[1724548617122,0.10841928,64324.0,64322.0,0.077697]
[1724548617123,0.0466,64324.0,64322.0,0.077697]
[1724548617418,0.3608,64326.0,64324.0,0.077694]
[1724548619114,0.3608,64326.0,64325.0,0.3608]
[1724548619115,0.009,64326.0,64325.0,0.3608]
[1724548619311,0.011,64326.0,64325.0,0.722993]
[1724548619701,0.011,64326.0,64325.0,0.532993]
[1724548620324,0.011,64326.0,64325.0,0.438493]
[1724548620520,0.011,64326.0,64319.0,0.04743321]
[1724548620521,0.011,64326.0,64319.0,0.00023321]
[1724548620722,0.3608,64322.0,64319.0,0.00023321]
[1724548622218,0.3648,64322.0,64319.0,0.00023321]
[1724548622715,0.36862183,64322.0,64319.0,0.00023321]
[1724548623826,0.37062183,64322.0,64319.0,0.00023321]
[1724548624723,0.00982183,64322.0,64319.0,0.00023321]
[1724548625533,0.08751883,64322.0,64319.0,0.00023321]
[1724548626126,0.077698,64321.0,64319.0,0.00023321]
[1724548627638,0.082698,64321.0,64319.0,0.00023321]
[1724548627938,0.007,64321.0,64319.0,0.00023321]
[1724548628133,0.007,64321.0,64320.0,0.438499]
[1724548629135,0.002,64321.0,64320.0,0.438499]
[1724548629336,0.006,64321.0,64320.0,0.438499]
[1724548629536,0.009,64321.0,64320.0,0.438499]
[1724548632946,0.009,64321.0,64319.0,0.00023321]
[1724548633144,0.086699,64321.0,64319.0,0.00023321]
[1724548633538,0.077699,64320.0,64319.0,0.00023321]
[1724548633732,0.077739,64320.0,64319.0,0.00023321]
[1724548633932,0.170739,64320.0,64319.0,0.00023321]
[1724548635382,0.175739,64320.0,64319.0,0.00023321]
[1724548635536,0.177739,64320.0,64319.0,0.00023321]
[1724548636846,0.56648,64320.0,64313.0,0.23724635]
[1724548637045,0.3608,64314.0,64313.0,0.23724635]
[1724548637535,0.07771,64312.0,64308.0,0.077713]
[1724548637737,0.0476,64311.0,64304.0,0.00023321]
[1724548637937,0.077714,64308.0,64304.0,0.00023321]
[1724548638344,0.077716,64306.0,64304.0,0.00023321]
[1724548638540,4e-05,64305.0,64304.0,0.00023321]
[1724548638768,0.077757,64305.0,64304.0,0.00023321]
[1724548638962,0.123857,64305.0,64304.0,0.00523321]
[1724548639639,0.077757,64305.0,64304.0,0.00523321]
[1724548640946,0.078757,64305.0,64304.0,0.00523321]
[1724548641544,0.079757,64305.0,64304.0,0.00523321]
[1724548643451,0.079757,64305.0,64304.0,0.00677551]
[1724548645346,0.440557,64305.0,64304.0,0.00677551]
[1724548646047,0.079757,64305.0,64304.0,0.00677551]
[1724548646240,0.440557,64305.0,64304.0,0.00677551]
[1724548647152,0.36284,64305.0,64304.0,0.00677551]
[1724548647541,0.00204,64305.0,64304.0,0.00677551]
[1724548648552,0.00204,64305.0,64304.0,0.08449351]
[1724548650851,0.079757,64305.0,64304.0,0.00677551]
[1724548651043,0.440557,64305.0,64304.0,0.00677551]
[1724548652538,0.440557,64305.0,64291.0,0.04642354]
[1724548652539,0.077724,64300.0,64297.0,0.077726]
[1724548652743,0.3608,64298.0,64297.0,0.077726]
[1724548653449,0.36084,64298.0,64297.0,0.077726]
[1724548653648,4e-05,64298.0,64297.0,0.077726]
[1724548654043,4e-05,64298.0,64297.0,0.078726]
[1724548654447,0.00104,64298.0,64297.0,0.078726]
[1724548654751,0.00104,64298.0,64297.0,0.077726]
[1724548655054,0.00204,64298.0,64297.0,0.078726]
[1724548659258,0.00204,64298.0,64297.0,0.945326]
[1724548659554,0.00204,64298.0,64297.0,0.12518246]
[1724548659748,0.00204,64298.0,64297.0,0.078726]
[1724548662385,0.04836302,64298.0,64297.0,0.078726]
[1724548663053,0.00204,64298.0,64297.0,0.078726]
[1724548665060,0.06378391,64298.0,64297.0,0.078726]
[1724548665247,0.00204,64298.0,64297.0,0.078726]
[1724548665854,0.06393696,64298.0,64297.0,0.078726]
[1724548666255,0.00204,64298.0,64297.0,0.12518246]
[1724548667154,0.00204,64298.0,64297.0,0.078726]
[1724548668153,0.06399262,64298.0,64297.0,0.078726]
[1724548668460,0.06399993,64298.0,64297.0,0.078726]
[1724548668860,0.06399993,64298.0,64297.0,0.14066795]
[1724548670856,0.00204,64298.0,64297.0,0.078726]
[1724548671050,0.00204,64298.0,64297.0,0.14088076]
[1724548671257,0.06399993,64298.0,64297.0,0.14088076]
[1724548671559,0.00204,64298.0,64297.0,0.14088076]
[1724548671756,0.06399993,64298.0,64297.0,0.14088076]
[1724548672262,0.06399993,64298.0,64297.0,0.078726]
[1724548675095,0.00204,64298.0,64297.0,0.14088076]
[1724548675166,0.00204,64298.0,64297.0,0.078726]
[1724548676562,0.08204,64298.0,64297.0,0.078726]
[1724548679267,0.08204,64298.0,64297.0,0.10302835]
[1724548680162,0.00204,64298.0,64297.0,0.078726]
[1724548680360,0.00204,64298.0,64297.0,0.10302841]
[1724548680976,0.00204,64298.0,64297.0,0.10302811]
[1724548681388,0.00204,64298.0,64297.0,0.078726]
[1724548681659,0.00204,64298.0,64297.0,0.10302822]
[1724548690073,0.07921989,64298.0,64297.0,0.10302822]
[1724548690382,0.07921989,64298.0,64297.0,0.14966684]
[1724548690628,0.00204,64298.0,64297.0,0.10302822]
[1724548691979,0.20254589,64298.0,64297.0,0.02530222]
[1724548692286,0.15056563,64298.0,64297.0,0.001]
[1724548692473,0.24318149,64298.0,64297.0,0.001]
[1724548693268,0.15056563,64298.0,64297.0,0.001]
[1724548693474,0.15056563,64298.0,64290.0,0.04663923]
[1724548693475,0.077734,64291.0,64290.0,0.04663923]
[1724548693776,0.43823425,64291.0,64288.0,0.04663923]
[1724548693969,0.09,64289.0,64288.0,0.04663923]
[1724548694271,0.09,64289.0,64288.0,0.02430662]
[1724548694474,0.13524,64289.0,64288.0,0.02430662]
[1724548694871,0.13524,64289.0,64287.0,0.077739]
[1724548695274,0.0619075,64288.0,64287.0,0.077739]
[1724548695575,0.0619475,64288.0,64287.0,0.10204562]
[1724548696586,0.0619475,64288.0,64287.0,0.077739]
[1724548696788,4e-05,64288.0,64287.0,0.10204562]
[1724548696976,0.00104,64288.0,64287.0,0.10204562]
[1724548697171,0.00204,64288.0,64287.0,0.10204562]
[1724548697375,0.06392243,64288.0,64287.0,0.10204562]
[1724548697775,0.00204,64288.0,64287.0,0.10204562]
[1724548698277,0.06391168,64288.0,64287.0,0.077739]
[1724548701581,0.14164968,64288.0,64287.0,0.077739]
[1724548702377,0.079778,64288.0,64287.0,0.077739]
[1724548702880,0.14164968,64288.0,64287.0,0.077739]
[1724548703177,0.079778,64288.0,64287.0,0.077739]
[1724548705586,0.14164968,64288.0,64287.0,0.077739]
[1724548705784,0.14164968,64288.0,64284.0,0.04663923]
[1724548705785,0.077741,64285.0,64281.0,0.04675923]
[1724548706086,0.077741,64285.0,64281.0,0.00012]
[1724548706087,0.167745,64282.0,64281.0,0.00012]
[1724548706281,0.3608,64283.0,64282.0,0.077745]
[1724548706485,0.42263025,64283.0,64282.0,0.077745]
[1724548706677,0.3608,64283.0,64282.0,0.077745]
[1724548707184,0.3608,64283.0,64282.0,0.077785]
[1724548707881,0.3618,64283.0,64282.0,0.077785]
[1724548708089,0.001,64283.0,64282.0,0.077785]
[1724548708681,0.002,64283.0,64282.0,0.077785]
[1724548709886,0.06383025,64283.0,64282.0,0.077785]
[1724548711492,0.002,64283.0,64282.0,0.077785]
[1724548711883,0.002,64283.0,64282.0,4e-05]
[1724548712896,0.079744,64283.0,64282.0,4e-05]
[1724548713193,0.126844,64283.0,64282.0,4e-05]
[1724548713594,0.671268,64283.0,64282.0,4e-05]
[1724548713793,0.2041513,64283.0,64270.0,0.077759]
[1724548714092,0.09,64273.0,64270.0,0.077759]
[1724548714394,0.0463442,64272.0,64270.0,0.077759]
[1724548714588,0.0463442,64272.0,64271.0,0.077758]
[1724548714790,0.1363442,64272.0,64271.0,0.077758]
[1724548715287,0.09,64272.0,64271.0,0.077758]
[1724548715794,0.1363442,64272.0,64271.0,0.077758]
[1724548716093,0.1373442,64272.0,64271.0,0.077758]
[1724548716301,0.091,64272.0,64271.0,0.077758]
[1724548716511,0.4518,64272.0,64271.0,0.077758]
[1724548717398,0.4528,64272.0,64271.0,0.077758]
[1724548718296,0.530557,64272.0,64271.0,0.077758]
[1724548719702,0.5345577,64272.0,64271.0,0.077758]
[1724548721911,0.5345977,64272.0,64271.0,0.077758]
[1724548722400,0.4445977,64272.0,64271.0,0.077758]
[1724548722603,0.5345977,64272.0,64271.0,0.077758]
[1724548722807,0.58091706,64272.0,64271.0,0.077758]
[1724548723514,0.5345977,64272.0,64271.0,0.077758]
[1724548723710,0.530597,64272.0,64271.0,0.077758]
[1724548724013,0.57691702,64272.0,64271.0,0.077758]
[1724548724208,0.21611702,64272.0,64271.0,0.077758]
[1724548724403,0.04835946,64272.0,64271.0,0.077758]
[1724548724716,0.00204,64272.0,64271.0,0.077758]
[1724548728209,0.00883876,64280.0,64272.0,0.077757]
[1724548728517,0.43834051,64288.0,64285.0,0.077741]
[1724548728518,0.00386402,64286.0,64285.0,0.077741]
[1724548728716,0.06179281,64287.0,64282.0,0.09]
[1724548728920,0.06179281,64287.0,64286.0,0.07774]
[1724548730415,0.42259281,64287.0,64286.0,0.07774]
[1724548730618,0.3608,64287.0,64286.0,0.07774]
[1724548730810,0.3618,64287.0,64286.0,0.07774]
[1724548731017,0.3628,64287.0,64286.0,0.07874]
[1724548732022,0.002,64287.0,64286.0,0.07874]
[1724548733325,0.06379281,64287.0,64286.0,0.07874]
[1724548733523,0.002,64287.0,64286.0,0.07874]
[1724548734028,0.06379281,64287.0,64286.0,0.07874]
[1724548738225,0.002,64287.0,64286.0,0.07874]
[1724548738927,0.002,64287.0,64286.0,0.001]
[1724548739233,0.174439,64287.0,64286.0,0.001]
[1724548741420,0.079739,64287.0,64286.0,0.001]
[1724548742029,0.14156682,64287.0,64286.0,0.001]
[1724548742335,0.079739,64287.0,64286.0,0.001]
[1724548743434,0.07888513,64287.0,64286.0,0.001]
[1724548744223,0.07888513,64287.0,64286.0,0.07874]
[1724548744420,0.00114613,64287.0,64286.0,0.07874]
[1724548744625,0.06296821,64287.0,64286.0,0.07874]
[1724548745428,0.00114613,64287.0,64286.0,0.07874]
[1724548745836,0.00114613,64287.0,64286.0,0.10304516]
[1724548746222,0.00114613,64287.0,64286.0,0.07874]
[1724548746426,0.00114613,64287.0,64286.0,0.1030447]
[1724548746826,0.00114613,64287.0,64286.0,0.10696732]
[1724548747930,0.00114613,64287.0,64286.0,0.15347925]
[1724548748642,0.00114613,64287.0,64286.0,0.15346388]
[1724548749325,0.00114613,64287.0,64286.0,0.15350388]
[1724548750035,0.00114613,64287.0,64286.0,0.10700626]
[1724548750237,0.00114613,64287.0,64286.0,0.08270262]
[1724548754434,0.00114613,64287.0,64286.0,0.12920024]
[1724548754828,0.00114613,64287.0,64286.0,0.08270262]
[1724548755238,0.00114613,64287.0,64286.0,0.12920024]
[1724548755832,0.00114613,64287.0,64286.0,0.17270262]
[1724548756543,0.00114613,64287.0,64286.0,0.21920024]
[1724548757341,0.00114613,64287.0,64286.0,0.17270262]
[1724548757540,0.00114613,64287.0,64286.0,0.21927111]
[1724548758153,0.00114613,64287.0,64286.0,0.58007111]
[1724548758242,0.00114613,64287.0,64286.0,0.53350262]
[1724548760741,0.00114613,64287.0,64286.0,0.17270262]
[1724548761046,0.00114613,64287.0,64286.0,0.53350262]
[1724548761584,0.00114613,64287.0,64286.0,0.17270262]
[1724548761839,0.00114613,64287.0,64286.0,0.53350262]
[1724548762242,0.00110613,64287.0,64286.0,0.61124262]
[1724548762738,0.00110613,64287.0,64286.0,0.63554533]
[1724548764443,0.00110613,64287.0,64286.0,0.55780533]
[1724548764641,0.00110613,64287.0,64286.0,0.53350262]
[1724548766442,0.00110613,64287.0,64286.0,0.55780557]
[1724548767440,0.00110613,64287.0,64286.0,1.02448557]
[1724548767652,0.00110613,64287.0,64286.0,1.42448557]
[1724548768455,0.00110613,64287.0,64286.0,1.40018262]
[1724548768547,0.00110613,64287.0,64286.0,1.42448536]
[1724548768753,0.00110613,64287.0,64286.0,1.50222536]
[1724548769341,0.00110613,64287.0,64286.0,1.5796528]
[1724548769543,0.00110613,64287.0,64286.0,1.50222536]
[1724548770442,0.00110613,64287.0,64286.0,1.5796528]
[1724548770642,3.4e-07,64288.0,64287.0,0.622118]
[1724548770981,3.4e-07,64288.0,64287.0,0.81829452]
[1724548771231,3.4e-07,64288.0,64287.0,1.21829452]
[1724548771453,3.4e-07,64288.0,64287.0,1.24263586]
[1724548772544,0.0966,64304.0,64287.0,1.24263586]
[1724548772545,0.0488,64304.0,64303.0,0.077719]
[1724548772750,0.0008,64305.0,64304.0,0.077718]
[1724548772949,0.00390173,64308.0,64307.0,0.077715]
[1724548773145,0.06182208,64309.0,64308.0,0.077713]
[1724548773648,0.06182208,64312.0,64307.0,0.13656321]
[1724548773852,0.06182208,64312.0,64311.0,0.16771]
[1724548774442,0.0489,64313.0,64312.0,0.077709]
[1724548774443,0.11072208,64313.0,64312.0,0.077709]
[1724548774646,0.11075109,64313.0,64312.0,0.077709]
[1724548775050,0.0489,64313.0,64312.0,0.077709]
[1724548775261,0.11075091,64313.0,64312.0,0.077749]
[1724548776547,0.0489,64313.0,64312.0,0.077749]
[1724548777147,0.0689,64313.0,64312.0,0.077749]
[1724548777358,0.1589,64313.0,64312.0,0.077749]
[1724548779457,0.0689,64313.0,64312.0,0.077749]
[1724548782953,0.02,64313.0,64312.0,0.077749]
[1724548785659,0.02,64313.0,64312.0,0.438549]
[1724548787751,0.00023321,64315.0,64312.0,1.305029]
[1724548787956,0.06185091,64332.0,64314.0,0.167706]
[1724548788159,0.0459,64333.0,64331.0,0.09]
[1724548789062,0.0459,64333.0,64332.0,4e-05]
[1724548789864,0.0599,64333.0,64332.0,0.077724]
[1724548790309,0.0739,64333.0,64332.0,0.077724]
[1724548790555,0.0739,64333.0,64332.0,0.078724]
[1724548792560,0.0739,64333.0,64332.0,0.079724]
[1724548793366,0.0739,64333.0,64332.0,0.08358205]
[1724548794772,0.0739,64333.0,64332.0,0.079724]
[1724548795657,0.0739,64333.0,64332.0,0.440524]
[1724548799264,0.0739,64333.0,64332.0,0.00204]
[1724548800763,0.151583,64333.0,64332.0,0.00204]
[1724548803460,0.028,64333.0,64332.0,0.169724]
[1724548804171,0.028,64333.0,64332.0,0.17358988]
[1724548805624,0.028,64333.0,64332.0,0.169724]
[1724548810068,0.028,64333.0,64332.0,0.530524]
[1724548812976,0.028,64333.0,64332.0,0.169724]
[1724548813175,0.028,64333.0,64332.0,0.530524]
[1724548814273,0.028,64333.0,64332.0,0.440524]
[1724548814573,0.028,64333.0,64332.0,0.530524]
[1724548816569,0.028,64333.0,64332.0,0.57708721]
[1724548817582,0.028,64333.0,64332.0,0.530524]
[1724548819980,0.014,64333.0,64332.0,0.529524]
[1724548820184,0.0002,64335.0,64334.0,0.077682]
[1724548820683,0.0002,64335.0,64334.0,0.438482]
[1724548820891,0.0002,64335.0,64334.0,0.077722]
[1724548821076,0.0002,64335.0,64334.0,0.438522]
[1724548822076,0.0002,64335.0,64334.0,0.077722]
[1724548822380,0.0122,64335.0,64334.0,0.439522]
[1724548822572,0.08405091,64335.0,64334.0,0.440522]
[1724548822973,0.0222,64335.0,64334.0,0.440522]
[1724548824074,0.0260369,64335.0,64334.0,0.440522]
[1724548825081,0.0260369,64335.0,64334.0,0.079722]
[1724548825583,0.1160369,64335.0,64334.0,0.079722]
[1724548825974,0.0222,64335.0,64334.0,0.079722]
[1724548826179,0.08411768,64335.0,64334.0,0.079722]
[1724548826381,0.0222,64335.0,64334.0,0.079722]
[1724548826773,0.0222,64335.0,64334.0,0.12628046]
[1724548827085,0.0222,64335.0,64334.0,0.079722]
[1724548827286,0.0222,64335.0,64334.0,0.10400852]
[1724548828472,0.0222,64335.0,64334.0,0.31400852]
[1724548828903,0.0222,64335.0,64334.0,0.3140064]
[1724548829683,0.0222,64335.0,64334.0,1.1803264]
[1724548830180,0.0222,64335.0,64334.0,1.2579258]
[1724548830373,0.0222,64335.0,64334.0,1.45395762]
[1724548831188,0.0222,64335.0,64334.0,1.47338468]
[1724548831375,0.0222,64335.0,64334.0,1.45395762]
[1724548831987,0.0222,64335.0,64334.0,1.45395704]
[1724548832187,0.0222,64335.0,64334.0,1.4733841]
[1724548832579,0.0222,64335.0,64334.0,1.47338409]
[1724548834586,0.0222,64335.0,64334.0,1.31810269]
[1724548834778,0.0222,64335.0,64334.0,0.43235563]
[1724548835184,0.0222,64335.0,64334.0,0.31400581]
[1724548836394,0.00023321,64338.0,64337.0,0.077678]
[1724548836583,2.1e-07,64338.0,64337.0,0.55986692]
[1724548836892,2.1e-07,64338.0,64337.0,1.62204689]
[1724548837191,2.1e-07,64338.0,64337.0,1.62204571]
[1724548837389,2.1e-07,64338.0,64337.0,1.54448643]
[1724548837597,0.06191768,64351.0,64350.0,0.077663]
[1724548837893,0.0457,64354.0,64351.0,0.077661]
[1724548837894,0.06191768,64352.0,64351.0,0.077661]
[1724548838194,0.06191768,64352.0,64351.0,0.10194481]
[1724548838490,0.06189633,64352.0,64351.0,0.10194481]
[1724548838792,0.06189633,64354.0,64353.0,0.077659]
[1724548838996,0.06189633,64354.0,64353.0,0.10193951]
[1724548839199,0.15939633,64355.0,64354.0,0.077658]
[1724548839492,0.0975,64355.0,64354.0,0.438458]
[1724548841993,0.1015,64355.0,64354.0,0.438458]
[1724548842288,0.1015,64355.0,64354.0,0.46273711]
[1724548842289,0.004,64355.0,64354.0,0.46273711]
[1724548843493,0.00023321,64358.0,64357.0,0.077654]
[1724548844494,0.00023321,64358.0,64357.0,0.077694]
[1724548845191,0.00023321,64358.0,64357.0,0.080694]
[1724548846305,0.06212954,64358.0,64357.0,0.080694]
[1724548846495,0.06212954,64358.0,64357.0,0.082694]
[1724548846696,0.00023321,64358.0,64357.0,0.082694]
[1724548847091,0.06199971,64358.0,64357.0,0.082694]
[1724548847599,0.00023321,64358.0,64357.0,0.082694]
[1724548847993,0.00023321,64358.0,64357.0,0.1069701]
[1724548849088,0.00023321,64358.0,64357.0,0.08669722]
[1724548858307,0.00023321,64358.0,64357.0,0.21087527]
[1724548858604,0.00023321,64358.0,64357.0,0.16435122]
[1724548858801,0.00023321,64358.0,64357.0,0.21105122]
[1724548859213,0.00023321,64358.0,64357.0,0.27308329]
[1724548859599,0.00023321,64358.0,64357.0,0.29408329]
[1724548860711,0.00023321,64358.0,64357.0,0.23205122]
[1724548861009,0.00023321,64358.0,64357.0,0.27848415]
[1724548861402,0.00023321,64358.0,64357.0,0.23205122]
[1724548862327,0.00023321,64358.0,64357.0,0.29408329]
[1724548864207,0.00023321,64358.0,64357.0,0.23205122]
[1724548865002,0.00023321,64358.0,64357.0,0.25632586]
[1724548865810,0.00023321,64358.0,64357.0,0.24732375]
[1724548866212,0.00023321,64358.0,64357.0,0.18535122]
[1724548867502,0.00023321,64358.0,64357.0,0.10769722]
[1724548869811,0.00023321,64358.0,64357.0,0.82929722]
[1724548871200,0.00023321,64358.0,64357.0,0.90683731]
[1724548871406,0.00023321,64358.0,64357.0,1.02514647]
[1724548873150,0.00023321,64358.0,64357.0,0.94760638]
[1724548873508,0.00023321,64358.0,64357.0,0.22600638]
[1724548873808,0.00023321,64358.0,64357.0,0.94760638]
[1724548874212,0.00023321,64358.0,64357.0,0.97188189]
[1724548877058,0.00023321,64358.0,64357.0,1.02526038]
[1724548877259,8.3e-07,64360.0,64359.0,0.155304]
[1724548877413,0.0617665,64369.0,64364.0,0.077646]
[1724548877612,0.0617665,64370.0,64368.0,0.3608]
[1724548877911,0.0617665,64370.0,64369.0,0.27208596]
[1724548878414,0.0617665,64371.0,64370.0,0.077638]
[1724548878618,0.00023302,64376.0,64371.0,0.077637]
[1724548878813,0.00023302,64376.0,64375.0,0.648432]
[1724548879117,0.00023302,64376.0,64375.0,0.67270568]
[1724548879319,0.00023302,64376.0,64375.0,0.67274568]
[1724548879721,0.00223302,64376.0,64375.0,0.67274568]
[1724548880335,0.00523302,64376.0,64375.0,0.67374568]
[1724548881419,0.00523302,64376.0,64375.0,0.73569659]
[1724548881619,0.00523302,64376.0,64375.0,0.67374568]
[1724548882724,0.00523302,64376.0,64375.0,0.31294568]
[1724548882920,0.00523302,64376.0,64375.0,1.03454568]
[1724548883625,0.00523302,64376.0,64375.0,1.010272]
[1724548884813,0.00523302,64376.0,64375.0,0.800272]
[1724548885043,0.87123302,64376.0,64375.0,0.00104]
[1724548886823,0.87123302,64376.0,64375.0,0.078672]
[1724548887013,0.87523168,64376.0,64375.0,0.078672]
[1724548888323,0.87223168,64376.0,64375.0,0.078672]
[1724548888628,0.47523168,64376.0,64375.0,0.077672]
[1724548890122,0.47523168,64376.0,64372.0,0.077636]
[1724548890123,0.87523168,64376.0,64372.0,0.077636]
[1724548890133,0.06192673,64374.0,64372.0,0.077636]
[1724548890319,0.06192673,64373.0,64372.0,0.077636]
[1724548891626,0.077633,64375.0,64372.0,0.077636]
[1724548891827,0.002,64373.0,64372.0,0.077636]
[1724548892823,0.077633,64375.0,64372.0,0.077636]
[1724548892824,0.077634,64374.0,64372.0,0.077636]
[1724548893423,0.00427168,64376.0,64373.0,0.077635]
[1724548893624,0.00427168,64376.0,64374.0,0.077633]
[1724548894231,0.00427168,64376.0,64375.0,4e-05]
[1724548894436,0.08190268,64376.0,64375.0,4e-05]
[1724548895239,0.48190268,64376.0,64375.0,4e-05]
[1724548895442,0.94790268,64376.0,64375.0,4e-05]
[1724548895949,0.08490268,64376.0,64375.0,4e-05]
[1724548896246,0.08690268,64376.0,64375.0,4e-05]
[1724548898545,0.00527302,64376.0,64375.0,0.077672]
[1724548898746,0.00527302,64376.0,64375.0,0.438472]
[1724548899048,0.00527302,64376.0,64375.0,0.67274408]
[1724548900011,0.00527302,64376.0,64375.0,0.648472]
[1724548900248,0.00527302,64376.0,64375.0,0.67274286]
[1724548900452,0.00527302,64376.0,64375.0,0.648472]
[1724548900747,0.00527302,64376.0,64375.0,0.438472]
[1724548901543,0.00527302,64376.0,64375.0,0.44245095]
[1724548901954,0.00527302,64376.0,64375.0,0.08165095]
[1724548902146,0.00527302,64376.0,64375.0,0.44245095]
[1724548906048,0.00527302,64376.0,64375.0,0.438472]
[1724548906409,0.06720207,64376.0,64375.0,0.077672]
[1724548906551,0.08258032,64376.0,64375.0,0.077672]
[1724548910346,0.00527302,64376.0,64375.0,0.077672]
[1724548912247,0.08258032,64376.0,64375.0,0.077672]
[1724548914246,0.00527302,64376.0,64375.0,0.077672]
[1724548915256,0.10807388,64376.0,64375.0,4e-05]
[1724548915461,0.077637,64371.0,64368.0,0.04643291]
[1724548915763,0.15518765,64371.0,64367.0,0.04643291]
[1724548916151,0.15518765,64371.0,64368.0,0.02427515]
[1724548916458,0.15518765,64371.0,64367.0,0.04643291]
[1724548916459,0.077637,64371.0,64370.0,0.077638]
[1724548916646,0.07755065,64373.0,64370.0,0.3608]
[1724548916846,0.08082367,64376.0,64375.0,0.077632]
[1724548917253,0.07782367,64376.0,64375.0,0.077632]
[1724548917458,0.00027302,64376.0,64375.0,0.077632]
[1724548918359,0.00327302,64376.0,64375.0,0.077632]
[1724548919652,0.00527302,64376.0,64375.0,0.077632]
[1724548920851,0.00527302,64376.0,64375.0,0.14843491]
[1724548921054,0.00527302,64376.0,64375.0,0.10190459]
[1724548921960,0.08282367,64376.0,64375.0,0.10190459]
[1724548922955,0.16045467,64376.0,64375.0,0.10190459]
[1724548924397,0.16045467,64376.0,64375.0,0.077632]
[1724548924584,0.16045467,64376.0,64375.0,0.10190556]
[1724548929257,0.08290402,64376.0,64375.0,0.10190556]
[1724548929657,0.08290402,64376.0,64370.0,0.3608]
[1724548929658,0.03044231,64376.0,64371.0,0.077637]
[1724548929870,0.07756726,64372.0,64371.0,0.077637]
[1724548930467,0.07760726,64372.0,64371.0,0.077637]
[1724548930762,0.07760726,64372.0,64370.0,0.33512028]
[1724548930763,0.09567139,64372.0,64370.0,0.33512028]
[1724548931039,0.09563139,64371.0,64370.0,0.33512028]
[1724548931169,0.09563139,64371.0,64370.0,0.35939507]
[1724548931389,0.09563139,64371.0,64364.0,0.00391522]
[1724548931669,0.17067704,64367.0,64365.0,0.38507479]
[1724548931967,0.09563139,64366.0,64365.0,0.438444]
[1724548932263,0.09563139,64366.0,64365.0,0.46271879]
[1724548932468,0.25079749,64366.0,64365.0,0.46271879]
[1724548933169,0.25079749,64366.0,64365.0,0.46871879]
[1724548933362,0.09563139,64366.0,64365.0,0.46871879]
[1724548933875,0.17067704,64368.0,64366.0,0.077643]
[1724548933876,0.17067704,64367.0,64366.0,0.077643]
[1724548934068,0.06207712,64368.0,64367.0,0.077642]
[1724548934306,0.06207712,64368.0,64367.0,0.16397041]
[1724548934659,0.06207712,64368.0,64367.0,0.27563058]
[1724548934865,0.06207712,64368.0,64367.0,0.27567058]
[1724548935068,0.06207712,64369.0,64368.0,0.077641]
[1724548935265,0.06207712,64369.0,64368.0,0.21357513]
[1724548935769,0.06207712,64369.0,64368.0,0.57441513]
[1724548936164,4e-05,64371.0,64370.0,0.077638]
[1724548936476,4e-05,64371.0,64370.0,0.22709573]
[1724548936965,4e-05,64371.0,64370.0,0.58793573]
[1724548937176,4e-05,64371.0,64370.0,0.56366177]
[1724548937375,4e-05,64371.0,64370.0,0.58793505]
[1724548937753,4e-05,64371.0,64370.0,0.50055067]
[1724548937975,4e-05,64371.0,64370.0,0.58793429]
[1724548939169,4e-05,64371.0,64370.0,0.58893429]
[1724548939376,4e-05,64371.0,64370.0,0.64142148]
[1724548939572,4e-05,64371.0,64370.0,0.59287552]
[1724548940685,4e-05,64371.0,64370.0,0.52976513]
[1724548940927,4e-05,64371.0,64370.0,0.59287462]
[1724548941063,4e-05,64371.0,64370.0,0.56860164]
[1724548941268,4e-05,64371.0,64370.0,0.59287454]
[1724548942171,4e-05,64371.0,64370.0,0.64142033]
[1724548943172,0.06201786,64371.0,64370.0,0.76022017]
[1724548943362,0.00027302,64376.0,64375.0,0.077632]
[1724548943567,0.00027302,64376.0,64375.0,0.574355]
[1724548943769,0.00027302,64376.0,64375.0,0.7701658]
[1724548944078,0.00027302,64376.0,64375.0,0.78971907]
[1724548944272,0.00027302,64376.0,64375.0,0.8671901]
[1724548944473,0.00027302,64376.0,64375.0,0.78971907]
[1724548944669,0.00027302,64376.0,64375.0,1.25571136]
[1724548944981,0.00227302,64376.0,64375.0,1.25571136]
[1724548945275,0.00227302,64376.0,64375.0,1.33314512]
[1724548945573,0.00527302,64376.0,64375.0,1.3331453]
[1724548945782,0.00527302,64376.0,64375.0,1.18390365]
[1724548945970,0.00527302,64376.0,64375.0,1.18390363]
[1724548946478,0.00527302,64376.0,64375.0,0.71790363]
[1724548947271,0.00527302,64376.0,64375.0,0.67144171]
[1724548948878,0.00527302,64376.0,64375.0,0.31064171]
[1724548949275,0.00527302,64376.0,64375.0,1.012827]